[Event "Titled Tuesday Blitz May 23 Early 2023"]
[White "Martinez Ramirez, Lennis"]
[Black "Fernandez Siles, Luis"]
[WhiteFideId "3509079"]
[BlackFideId "2209420"]
[WhiteElo "2410"]
[BlackElo "2195"]
[Result "1-0"]
[Round "01"]
[TimeControl "180+2"]
[Date "2023.05.23"]
[WhiteClock "0:00:03"]
[BlackClock "0:00:00"]

1. c4 {[%clk 0:02:59]}  Nf6 {[%clk 0:02:58]} 2. Nc3 {[%clk 0:02:58]}  g6 {[%clk 0:02:58]} 3. e4 {[%clk 0:02:57]}  d6 {[%clk 0:02:59]} 4. d4 {[%clk 0:02:58]}  Bg7 {[%clk 0:02:58]} 5. f3 {[%clk 0:02:57]}  O-O {[%clk 0:02:58]} 6. Bg5 {[%clk 0:02:57]}  Nc6 {[%clk 0:02:55]} 7. d5 {[%clk 0:02:56]}  Ne5 {[%clk 0:02:48]} 8. Qd2 {[%clk 0:02:43]}  c5 {[%clk 0:02:45]} 9. f4 {[%clk 0:02:38]}  Ned7 {[%clk 0:02:40]} 10. Nf3 {[%clk 0:02:38]}  Ne8 {[%clk 0:02:27]} 11. Bd3 {[%clk 0:02:34]}  Nc7 {[%clk 0:02:26]} 12. O-O {[%clk 0:02:26]}  Qe8 {[%clk 0:02:23]} 13. Rae1 {[%clk 0:02:03]}  e5 {[%clk 0:02:16]} 14. f5 {[%clk 0:02:03]}  f6 {[%clk 0:02:15]} 15. Be3 {[%clk 0:02:00]}  g5 {[%clk 0:02:13]} 16. h4 {[%clk 0:01:58]}  h6 {[%clk 0:02:12]} 17. hxg5 {[%clk 0:01:58]}  hxg5 {[%clk 0:02:12]} 18. Kf2 {[%clk 0:01:52]}  a6 {[%clk 0:01:52]} 19. a4 {[%clk 0:01:51]}  b5 {[%clk 0:01:53]} 20. cxb5 {[%clk 0:01:50]}  axb5 {[%clk 0:01:53]} 21. Nxb5 {[%clk 0:01:49]}  Nxb5 {[%clk 0:01:52]} 22. Bxb5 {[%clk 0:01:50]}  Ba6 {[%clk 0:01:52]} 23. Rh1 {[%clk 0:01:48]}  Bxb5 {[%clk 0:01:46]} 24. axb5 {[%clk 0:01:49]}  Qb8 {[%clk 0:01:42]} 25. Qe2 {[%clk 0:01:37]}  Ra4 {[%clk 0:01:31]} 26. Nd2 {[%clk 0:01:32]}  Rb4 {[%clk 0:01:28]} 27. Qh5 {[%clk 0:01:26]}  Rc8 {[%clk 0:00:53]} 28. Qh7+ {[%clk 0:01:19]}  Kf8 {[%clk 0:00:47]} 29. Qg6 {[%clk 0:01:18]}  Nb6 {[%clk 0:00:28]} 30. Rh7 {[%clk 0:01:14]}  Qb7 {[%clk 0:00:28]} 31. Reh1 {[%clk 0:01:12]}  Qf7 {[%clk 0:00:28]} 32. Rh8+ {[%clk 0:00:12]}  Ke7 {[%clk 0:00:18]} 33. Rxc8 {[%clk 0:00:12]}  Nxc8 {[%clk 0:00:18]} 34. Rh7 {[%clk 0:00:09]}  Qxg6 {[%clk 0:00:17]} 35. fxg6 {[%clk 0:00:10]}  Kf8 {[%clk 0:00:16]} 36. b3 {[%clk 0:00:11]}  Nb6 {[%clk 0:00:16]} 37. Rh1 {[%clk 0:00:09]}  Rxb5 {[%clk 0:00:12]} 38. Ra1 {[%clk 0:00:10]}  c4 {[%clk 0:00:12]} 39. bxc4 {[%clk 0:00:07]}  Rb2 {[%clk 0:00:10]} 40. Kf3 {[%clk 0:00:05]}  Nd7 {[%clk 0:00:07]} 41. Ra8+ {[%clk 0:00:04]}  Ke7 {[%clk 0:00:07]} 42. Ra7 {[%clk 0:00:05]}  Rc2 {[%clk 0:00:02]} 43. g4 {[%clk 0:00:05]}  Rc3 {[%clk 0:00:02]} 44. Ke2 {[%clk 0:00:05]}  Bf8 {[%clk 0:00:02]} 45. c5 {[%clk 0:00:04]}  dxc5 {[%clk 0:00:02]} 46. Nf3 {[%clk 0:00:03]}  Kd6 {[%clk 0:00:02]} 47. Ra6+ {[%clk 0:00:03]}  Kc7 {[%clk 0:00:02]} 48. Rc6+ {[%clk 0:00:02]}  Kd8 {[%clk 0:00:01]} 49. Re6 {[%clk 0:00:02]}  c4 {[%clk 0:00:01]} 50. Nd2 {[%clk 0:00:03]}  Bc5 {[%clk 0:00:00]} 51. g7 {[%clk 0:00:03]} 1-0


[Site "https://www.chess.com"]

[Event "Titled Tuesday Blitz May 23 Early 2023"]
[White "NLLO777"]
[Black "Javakhadze, Zurab"]
[BlackFideId "13603647"]
[WhiteElo "2390"]
[BlackElo "2381"]
[Result "0-1"]
[Round "01"]
[TimeControl "180+2"]
[Date "2023.05.23"]
[WhiteClock "0:01:10"]
[BlackClock "0:00:37"]

1. d4 {[%clk 0:02:59]}  d5 {[%clk 0:02:36]} 2. c4 {[%clk 0:02:58]}  e6 {[%clk 0:02:33]} 3. Nf3 {[%clk 0:02:58]}  Nf6 {[%clk 0:02:33]} 4. g3 {[%clk 0:02:58]}  Be7 {[%clk 0:02:22]} 5. Bg2 {[%clk 0:02:58]}  O-O {[%clk 0:02:23]} 6. O-O {[%clk 0:02:58]}  a5 {[%clk 0:02:23]} 7. Nbd2 {[%clk 0:02:58]}  c6 {[%clk 0:02:20]} 8. Qc2 {[%clk 0:02:58]}  b5 {[%clk 0:02:15]} 9. b3 {[%clk 0:02:52]}  bxc4 {[%clk 0:02:14]} 10. bxc4 {[%clk 0:02:53]}  Ba6 {[%clk 0:02:14]} 11. Rd1 {[%clk 0:02:51]}  Nbd7 {[%clk 0:02:13]} 12. Bf1 {[%clk 0:02:41]}  c5 {[%clk 0:02:05]} 13. e4 {[%clk 0:02:33]}  cxd4 {[%clk 0:01:50]} 14. cxd5 {[%clk 0:02:22]}  exd5 {[%clk 0:01:46]} 15. e5 {[%clk 0:02:18]}  Ne4 {[%clk 0:01:09]} 16. Nxe4 {[%clk 0:02:13]}  dxe4 {[%clk 0:01:10]} 17. Qxe4 {[%clk 0:02:12]}  Bxf1 {[%clk 0:01:10]} 18. Rxf1 {[%clk 0:02:13]}  Bc5 {[%clk 0:00:47]} 19. Bg5 {[%clk 0:02:09]}  Qb6 {[%clk 0:00:41]} 20. Rab1 {[%clk 0:02:05]}  Qe6 {[%clk 0:00:38]} 21. Nxd4 {[%clk 0:01:46]}  Qxe5 {[%clk 0:00:37]} 22. Qxe5 {[%clk 0:01:43]}  Nxe5 {[%clk 0:00:38]} 23. Be3 {[%clk 0:01:36]}  Bxd4 {[%clk 0:00:38]} 24. Kg2 {[%clk 0:01:10]}  Bxe3 {[%clk 0:00:37]} 0-1


[Site "https://www.chess.com"]

[Event "Titled Tuesday Blitz May 23 Early 2023"]
[White "Prohaszka, Peter"]
[Black "Urquhart, Ed"]
[WhiteFideId "726265"]
[BlackFideId "2603748"]
[WhiteElo "2626"]
[BlackElo "2184"]
[Result "1/2-1/2"]
[Round "01"]
[TimeControl "180+2"]
[Date "2023.05.23"]
[WhiteClock "0:00:10"]
[BlackClock "0:00:09"]

1. d4 {[%clk 0:02:59]}  Nf6 {[%clk 0:02:59]} 2. c3 {[%clk 0:02:59]}  d5 {[%clk 0:02:56]} 3. Nf3 {[%clk 0:02:57]}  Bf5 {[%clk 0:02:56]} 4. Bf4 {[%clk 0:02:53]}  e6 {[%clk 0:02:56]} 5. Qb3 {[%clk 0:02:52]}  Qc8 {[%clk 0:02:54]} 6. e3 {[%clk 0:02:53]}  Bd6 {[%clk 0:02:53]} 7. Bxd6 {[%clk 0:02:40]}  cxd6 {[%clk 0:02:54]} 8. Nbd2 {[%clk 0:02:41]}  O-O {[%clk 0:02:53]} 9. Rc1 {[%clk 0:02:41]}  Nc6 {[%clk 0:02:49]} 10. Qa3 {[%clk 0:02:40]}  Qd7 {[%clk 0:02:48]} 11. Nh4 {[%clk 0:02:32]}  Bg4 {[%clk 0:02:45]} 12. h3 {[%clk 0:02:24]}  Bh5 {[%clk 0:02:45]} 13. g4 {[%clk 0:02:24]}  Bg6 {[%clk 0:02:45]} 14. Nxg6 {[%clk 0:02:19]}  hxg6 {[%clk 0:02:45]} 15. Bg2 {[%clk 0:02:11]}  b5 {[%clk 0:02:36]} 16. Qb3 {[%clk 0:01:54]}  Rab8 {[%clk 0:02:29]} 17. g5 {[%clk 0:01:53]}  Nh5 {[%clk 0:01:58]} 18. Bf3 {[%clk 0:01:52]}  a5 {[%clk 0:01:57]} 19. Qd1 {[%clk 0:01:51]}  b4 {[%clk 0:01:53]} 20. c4 {[%clk 0:01:23]}  dxc4 {[%clk 0:01:41]} 21. Rxc4 {[%clk 0:01:22]}  d5 {[%clk 0:01:41]} 22. Rc5 {[%clk 0:01:22]}  Rfc8 {[%clk 0:01:29]} 23. Bxh5 {[%clk 0:01:21]}  gxh5 {[%clk 0:01:29]} 24. Qxh5 {[%clk 0:01:22]}  g6 {[%clk 0:01:29]} 25. Qe2 {[%clk 0:01:17]}  Ne7 {[%clk 0:01:29]} 26. Nb3 {[%clk 0:01:01]}  Nf5 {[%clk 0:01:18]} 27. Rxc8+ {[%clk 0:00:53]}  Rxc8 {[%clk 0:01:18]} 28. Nc5 {[%clk 0:00:54]}  Qe7 {[%clk 0:01:13]} 29. Qa6 {[%clk 0:00:28]}  Rf8 {[%clk 0:00:59]} 30. h4 {[%clk 0:00:28]}  e5 {[%clk 0:00:59]} 31. Qf6 {[%clk 0:00:21]}  Qxf6 {[%clk 0:00:54]} 32. gxf6 {[%clk 0:00:22]}  exd4 {[%clk 0:00:54]} 33. exd4 {[%clk 0:00:21]}  Nxd4 {[%clk 0:00:54]} 34. Kd2 {[%clk 0:00:20]}  Rc8 {[%clk 0:00:51]} 35. Rc1 {[%clk 0:00:13]}  Nf3+ {[%clk 0:00:47]} 36. Ke3 {[%clk 0:00:13]}  Nxh4 {[%clk 0:00:47]} 37. Kd4 {[%clk 0:00:14]}  Rc6 {[%clk 0:00:34]} 38. Kxd5 {[%clk 0:00:05]}  Rxf6 {[%clk 0:00:33]} 39. Ne4 {[%clk 0:00:04]}  Rf5+ {[%clk 0:00:31]} 40. Kd6 {[%clk 0:00:02]}  Kg7 {[%clk 0:00:31]} 41. Rc5 {[%clk 0:00:03]}  Rf4 {[%clk 0:00:25]} 42. Ke5 {[%clk 0:00:02]}  Rf5+ {[%clk 0:00:18]} 43. Kd4 {[%clk 0:00:02]}  Rf4 {[%clk 0:00:18]} 44. Ke3 {[%clk 0:00:02]}  Rf3+ {[%clk 0:00:17]} 45. Ke2 {[%clk 0:00:02]}  Rh3 {[%clk 0:00:15]} 46. Rxa5 {[%clk 0:00:02]}  Nf5 {[%clk 0:00:15]} 47. Nd2 {[%clk 0:00:01]}  Rh4 {[%clk 0:00:12]} 48. Rb5 {[%clk 0:00:01]}  g5 {[%clk 0:00:12]} 49. Kf1 {[%clk 0:00:01]}  Rd4 {[%clk 0:00:11]} 50. Rxf5 {[%clk 0:00:01]}  Rxd2 {[%clk 0:00:11]} 51. Rxg5+ {[%clk 0:00:02]}  Kf6 {[%clk 0:00:11]} 52. Rb5 {[%clk 0:00:02]}  Rxb2 {[%clk 0:00:11]} 53. Kg2 {[%clk 0:00:03]}  Ke6 {[%clk 0:00:10]} 54. Kg3 {[%clk 0:00:03]}  Kd6 {[%clk 0:00:10]} 55. f4 {[%clk 0:00:03]}  Kc6 {[%clk 0:00:11]} 56. Rb8 {[%clk 0:00:04]}  Kc5 {[%clk 0:00:10]} 57. Kg4 {[%clk 0:00:04]}  Rxa2 {[%clk 0:00:11]} 58. Kg5 {[%clk 0:00:04]}  Rf2 {[%clk 0:00:11]} 59. f5 {[%clk 0:00:05]}  Kc4 {[%clk 0:00:09]} 60. Kf6 {[%clk 0:00:05]}  Kc3 {[%clk 0:00:09]} 61. Rb5 {[%clk 0:00:04]}  b3 {[%clk 0:00:09]} 62. Kxf7 {[%clk 0:00:05]}  b2 {[%clk 0:00:08]} 63. f6 {[%clk 0:00:05]}  Rf4 {[%clk 0:00:06]} 64. Rxb2 {[%clk 0:00:05]}  Kxb2 {[%clk 0:00:06]} 65. Kg7 {[%clk 0:00:05]}  Rg4+ {[%clk 0:00:06]} 66. Kh8 {[%clk 0:00:06]}  Rh4+ {[%clk 0:00:06]} 67. Kg7 {[%clk 0:00:06]}  Rg4+ {[%clk 0:00:06]} 68. Kh8 {[%clk 0:00:06]}  Kc3 {[%clk 0:00:07]} 69. f7 {[%clk 0:00:07]}  Rh4+ {[%clk 0:00:07]} 70. Kg7 {[%clk 0:00:07]}  Rg4+ {[%clk 0:00:08]} 71. Kf6 {[%clk 0:00:08]}  Rf4+ {[%clk 0:00:08]} 72. Ke7 {[%clk 0:00:08]}  Kd4 {[%clk 0:00:08]} 73. f8=Q {[%clk 0:00:09]}  Rxf8 {[%clk 0:00:09]} 74. Kxf8 {[%clk 0:00:10]} 1/2-1/2


[Site "https://www.chess.com"]

[Event "Titled Tuesday Blitz May 23 Early 2023"]
[White "Makhmudov, Shukhrat"]
[Black "Starozhilov, Leonid"]
[WhiteFideId "14200775"]
[BlackFideId "14106752"]
[WhiteElo "2135"]
[BlackElo "2352"]
[Result "0-1"]
[Round "01"]
[TimeControl "180+2"]
[Date "2023.05.23"]
[WhiteClock "0:01:25"]
[BlackClock "0:01:10"]

1. e4 {[%clk 0:02:58]}  g6 {[%clk 0:02:59]} 2. d4 {[%clk 0:02:58]}  Bg7 {[%clk 0:02:57]} 3. Nc3 {[%clk 0:02:59]}  d6 {[%clk 0:02:57]} 4. Be3 {[%clk 0:02:59]}  a6 {[%clk 0:02:58]} 5. Qd2 {[%clk 0:02:58]}  b5 {[%clk 0:02:57]} 6. a3 {[%clk 0:02:58]}  Bb7 {[%clk 0:02:57]} 7. O-O-O {[%clk 0:02:57]}  Nd7 {[%clk 0:02:56]} 8. Kb1 {[%clk 0:02:57]}  e6 {[%clk 0:02:49]} 9. f3 {[%clk 0:02:57]}  h5 {[%clk 0:02:48]} 10. h4 {[%clk 0:02:57]}  Ne7 {[%clk 0:02:48]} 11. Nh3 {[%clk 0:02:57]}  c6 {[%clk 0:02:42]} 12. Ng5 {[%clk 0:02:57]}  Qc7 {[%clk 0:02:42]} 13. d5 {[%clk 0:02:48]}  cxd5 {[%clk 0:02:38]} 14. exd5 {[%clk 0:02:48]}  e5 {[%clk 0:02:24]} 15. Bd3 {[%clk 0:02:24]}  Nb6 {[%clk 0:02:11]} 16. Bxb5+ {[%clk 0:02:06]}  axb5 {[%clk 0:02:08]} 17. Nxb5 {[%clk 0:02:07]}  Qd8 {[%clk 0:02:08]} 18. Qb4 {[%clk 0:02:06]}  O-O {[%clk 0:01:57]} 19. Bxb6 {[%clk 0:01:57]}  Qxb6 {[%clk 0:01:56]} 20. Nxd6 {[%clk 0:01:57]}  Qxb4 {[%clk 0:01:53]} 21. axb4 {[%clk 0:01:57]}  Bxd5 {[%clk 0:01:52]} 22. c4 {[%clk 0:01:54]}  Bc6 {[%clk 0:01:39]} 23. b5 {[%clk 0:01:53]}  Bd7 {[%clk 0:01:38]} 24. Ndxf7 {[%clk 0:01:53]}  Bf5+ {[%clk 0:01:37]} 25. Kc1 {[%clk 0:01:50]}  Rxf7 {[%clk 0:01:37]} 26. Nxf7 {[%clk 0:01:50]}  Kxf7 {[%clk 0:01:38]} 27. Rd6 {[%clk 0:01:43]}  Bh6+ {[%clk 0:01:27]} 28. Kd1 {[%clk 0:01:41]}  Ra1+ {[%clk 0:01:27]} 29. Ke2 {[%clk 0:01:41]}  Rxh1 {[%clk 0:01:27]} 30. b6 {[%clk 0:01:40]}  Rb1 {[%clk 0:01:25]} 31. c5 {[%clk 0:01:34]}  Rxb2+ {[%clk 0:01:24]} 32. Ke1 {[%clk 0:01:34]}  Nc8 {[%clk 0:01:21]} 33. Rc6 {[%clk 0:01:33]}  Nxb6 {[%clk 0:01:19]} 34. cxb6 {[%clk 0:01:30]}  Be3 {[%clk 0:01:16]} 35. g4 {[%clk 0:01:25]}  Bd3 {[%clk 0:01:10]} 0-1


[Site "https://www.chess.com"]

[Event "Titled Tuesday Blitz May 23 Early 2023"]
[White "Radzhabov, Rodion"]
[Black "LeoLV10"]
[WhiteFideId "884715"]
[WhiteElo "2215"]
[BlackElo "2380"]
[Result "1-0"]
[Round "01"]
[TimeControl "180+2"]
[Date "2023.05.23"]
[WhiteClock "0:00:25"]
[BlackClock "0:00:29"]

1. e4 {[%clk 0:02:59]}  c6 {[%clk 0:02:57]} 2. Nc3 {[%clk 0:02:58]}  d5 {[%clk 0:02:58]} 3. Qe2 {[%clk 0:02:58]}  dxe4 {[%clk 0:02:58]} 4. Nxe4 {[%clk 0:02:58]}  Nf6 {[%clk 0:02:59]} 5. Nxf6+ {[%clk 0:02:57]}  gxf6 {[%clk 0:03:00]} 6. Nf3 {[%clk 0:02:58]}  h5 {[%clk 0:02:58]} 7. d4 {[%clk 0:02:54]}  Bf5 {[%clk 0:02:55]} 8. c3 {[%clk 0:02:40]}  Nd7 {[%clk 0:02:53]} 9. Nh4 {[%clk 0:02:39]}  Bh7 {[%clk 0:02:53]} 10. f4 {[%clk 0:02:40]}  e6 {[%clk 0:02:48]} 11. f5 {[%clk 0:02:38]}  Qe7 {[%clk 0:02:48]} 12. g3 {[%clk 0:02:34]}  exf5 {[%clk 0:02:44]} 13. Bh3 {[%clk 0:02:31]}  Qxe2+ {[%clk 0:02:43]} 14. Kxe2 {[%clk 0:02:32]}  O-O-O {[%clk 0:02:43]} 15. Bf4 {[%clk 0:02:26]}  Re8+ {[%clk 0:02:43]} 16. Kd3 {[%clk 0:02:16]}  Be7 {[%clk 0:02:32]} 17. Rae1 {[%clk 0:02:15]}  Bd8 {[%clk 0:02:32]} 18. Bxf5 {[%clk 0:02:06]}  Bxf5+ {[%clk 0:02:28]} 19. Nxf5 {[%clk 0:02:07]}  Bc7 {[%clk 0:02:28]} 20. Bd6 {[%clk 0:01:53]}  b6 {[%clk 0:02:15]} 21. b4 {[%clk 0:01:39]}  Re6 {[%clk 0:02:02]} 22. Bxc7 {[%clk 0:00:45]}  Kxc7 {[%clk 0:02:02]} 23. Re3 {[%clk 0:00:42]}  Nf8 {[%clk 0:01:44]} 24. Rhe1 {[%clk 0:00:42]}  Rxe3+ {[%clk 0:01:44]} 25. Rxe3 {[%clk 0:00:42]}  Ne6 {[%clk 0:01:45]} 26. Rf3 {[%clk 0:00:38]}  Ng5 {[%clk 0:01:43]} 27. Rf1 {[%clk 0:00:37]}  Kd7 {[%clk 0:01:26]} 28. Nh4 {[%clk 0:00:26]}  Ke7 {[%clk 0:01:22]} 29. Re1+ {[%clk 0:00:24]}  Kd7 {[%clk 0:01:21]} 30. Rf1 {[%clk 0:00:24]}  Ke7 {[%clk 0:01:21]} 31. Nf5+ {[%clk 0:00:25]}  Kd7 {[%clk 0:01:21]} 32. a4 {[%clk 0:00:23]}  Ne6 {[%clk 0:01:19]} 33. Ne3 {[%clk 0:00:19]}  Ke7 {[%clk 0:01:12]} 34. d5 {[%clk 0:00:17]}  cxd5 {[%clk 0:01:00]} 35. Nxd5+ {[%clk 0:00:18]}  Kd6 {[%clk 0:01:00]} 36. Nxf6 {[%clk 0:00:18]}  h4 {[%clk 0:01:00]} 37. g4 {[%clk 0:00:18]}  Ke7 {[%clk 0:00:57]} 38. Nd5+ {[%clk 0:00:18]}  Kd6 {[%clk 0:00:57]} 39. Ne3 {[%clk 0:00:18]}  Ke7 {[%clk 0:00:55]} 40. Nf5+ {[%clk 0:00:18]}  Kd7 {[%clk 0:00:54]} 41. Kc4 {[%clk 0:00:16]}  a6 {[%clk 0:00:52]} 42. Kb3 {[%clk 0:00:15]}  Rg8 {[%clk 0:00:47]} 43. Rd1+ {[%clk 0:00:16]}  Kc7 {[%clk 0:00:48]} 44. h3 {[%clk 0:00:12]}  Ng5 {[%clk 0:00:47]} 45. Rd3 {[%clk 0:00:10]}  Rh8 {[%clk 0:00:41]} 46. c4 {[%clk 0:00:10]}  Ne6 {[%clk 0:00:41]} 47. Rf3 {[%clk 0:00:09]}  Ng5 {[%clk 0:00:39]} 48. Re3 {[%clk 0:00:09]}  Ne6 {[%clk 0:00:39]} 49. Kc3 {[%clk 0:00:10]}  Kc6 {[%clk 0:00:32]} 50. Nd4+ {[%clk 0:00:10]}  Nxd4 {[%clk 0:00:31]} 51. Kxd4 {[%clk 0:00:11]}  Rd8+ {[%clk 0:00:32]} 52. Kc3 {[%clk 0:00:11]}  Rd1 {[%clk 0:00:25]} 53. Rf3 {[%clk 0:00:12]}  Rc1+ {[%clk 0:00:25]} 54. Kd4 {[%clk 0:00:12]}  Rd1+ {[%clk 0:00:25]} 55. Ke5 {[%clk 0:00:12]}  Rc1 {[%clk 0:00:24]} 56. b5+ {[%clk 0:00:13]}  axb5 {[%clk 0:00:21]} 57. cxb5+ {[%clk 0:00:14]}  Kc5 {[%clk 0:00:21]} 58. Kf6 {[%clk 0:00:14]}  Rc4 {[%clk 0:00:20]} 59. Kxf7 {[%clk 0:00:14]}  Rxa4 {[%clk 0:00:20]} 60. g5 {[%clk 0:00:15]}  Kxb5 {[%clk 0:00:18]} 61. g6 {[%clk 0:00:15]}  Ra7+ {[%clk 0:00:19]} 62. Kf6 {[%clk 0:00:15]}  Ra8 {[%clk 0:00:19]} 63. g7 {[%clk 0:00:16]}  Kc4 {[%clk 0:00:19]} 64. Kf7 {[%clk 0:00:16]}  b5 {[%clk 0:00:19]} 65. g8=Q {[%clk 0:00:17]}  Rxg8 {[%clk 0:00:20]} 66. Kxg8 {[%clk 0:00:17]}  b4 {[%clk 0:00:21]} 67. Kg7 {[%clk 0:00:17]}  b3 {[%clk 0:00:21]} 68. Rf8 {[%clk 0:00:17]}  Kc3 {[%clk 0:00:20]} 69. Rb8 {[%clk 0:00:18]}  Kc2 {[%clk 0:00:20]} 70. Kg6 {[%clk 0:00:18]}  b2 {[%clk 0:00:21]} 71. Kg5 {[%clk 0:00:19]}  b1=Q {[%clk 0:00:21]} 72. Rxb1 {[%clk 0:00:20]}  Kxb1 {[%clk 0:00:22]} 73. Kxh4 {[%clk 0:00:20]}  Kc2 {[%clk 0:00:23]} 74. Kg5 {[%clk 0:00:21]}  Kd3 {[%clk 0:00:24]} 75. h4 {[%clk 0:00:22]}  Ke4 {[%clk 0:00:24]} 76. h5 {[%clk 0:00:22]}  Ke5 {[%clk 0:00:25]} 77. Kg6 {[%clk 0:00:23]}  Ke6 {[%clk 0:00:26]} 78. Kg7 {[%clk 0:00:23]}  Ke7 {[%clk 0:00:27]} 79. h6 {[%clk 0:00:24]}  Ke6 {[%clk 0:00:28]} 80. h7 {[%clk 0:00:24]}  Kf5 {[%clk 0:00:28]} 81. h8=Q {[%clk 0:00:25]}  Kg5 {[%clk 0:00:29]} 82. Qh6+ {[%clk 0:00:25]} 1-0


[Site "https://www.chess.com"]

[Event "Titled Tuesday Blitz May 23 Early 2023"]
[White "Begmuratov, Alisher"]
[Black "Matveeva, Olga"]
[WhiteFideId "14203367"]
[BlackFideId "24107018"]
[WhiteElo "2387"]
[BlackElo "2009"]
[Result "0-1"]
[Round "01"]
[TimeControl "180+2"]
[Date "2023.05.23"]
[WhiteClock "0:00:07"]
[BlackClock "0:00:04"]

1. d4 {[%clk 0:02:59]}  Nf6 {[%clk 0:02:59]} 2. Nf3 {[%clk 0:02:59]}  g6 {[%clk 0:02:57]} 3. Nc3 {[%clk 0:02:58]}  d5 {[%clk 0:02:55]} 4. h4 {[%clk 0:02:58]}  c6 {[%clk 0:02:53]} 5. Bg5 {[%clk 0:02:55]}  Bg7 {[%clk 0:02:52]} 6. Bxf6 {[%clk 0:02:55]}  Bxf6 {[%clk 0:02:48]} 7. h5 {[%clk 0:02:55]}  Bf5 {[%clk 0:02:42]} 8. e3 {[%clk 0:02:53]}  Nd7 {[%clk 0:02:37]} 9. Bd3 {[%clk 0:02:52]}  Bxd3 {[%clk 0:02:35]} 10. Qxd3 {[%clk 0:02:53]}  e5 {[%clk 0:02:32]} 11. dxe5 {[%clk 0:02:43]}  Nxe5 {[%clk 0:02:33]} 12. Nxe5 {[%clk 0:02:42]}  Bxe5 {[%clk 0:02:34]} 13. hxg6 {[%clk 0:02:42]}  hxg6 {[%clk 0:02:33]} 14. Rxh8+ {[%clk 0:02:41]}  Bxh8 {[%clk 0:02:34]} 15. O-O-O {[%clk 0:02:41]}  Qg5 {[%clk 0:02:25]} 16. g3 {[%clk 0:02:38]}  O-O-O {[%clk 0:02:21]} 17. Kb1 {[%clk 0:02:19]}  Qf6 {[%clk 0:02:13]} 18. Qe2 {[%clk 0:02:13]}  Bg7 {[%clk 0:02:10]} 19. a3 {[%clk 0:02:10]}  Rh8 {[%clk 0:02:07]} 20. e4 {[%clk 0:02:08]}  dxe4 {[%clk 0:01:52]} 21. Qxe4 {[%clk 0:01:26]}  Qxf2 {[%clk 0:01:33]} 22. Na4 {[%clk 0:01:15]}  Qxg3 {[%clk 0:01:13]} 23. Rf1 {[%clk 0:01:09]}  Qe5 {[%clk 0:01:03]} 24. Qxe5 {[%clk 0:00:55]}  Bxe5 {[%clk 0:01:04]} 25. Rxf7 {[%clk 0:00:56]}  Rg8 {[%clk 0:00:58]} 26. Nc5 {[%clk 0:00:55]}  g5 {[%clk 0:00:50]} 27. Rf5 {[%clk 0:00:35]}  Bc7 {[%clk 0:00:32]} 28. Nd3 {[%clk 0:00:21]}  g4 {[%clk 0:00:31]} 29. Ne1 {[%clk 0:00:20]}  g3 {[%clk 0:00:30]} 30. Ng2 {[%clk 0:00:20]}  Rh8 {[%clk 0:00:25]} 31. Ka2 {[%clk 0:00:19]}  Rh2 {[%clk 0:00:23]} 32. Rf8+ {[%clk 0:00:19]}  Kd7 {[%clk 0:00:23]} 33. Rf7+ {[%clk 0:00:19]}  Kd8 {[%clk 0:00:23]} 34. Ne3 {[%clk 0:00:19]}  Re2 {[%clk 0:00:20]} 35. Nf5 {[%clk 0:00:19]}  g2 {[%clk 0:00:19]} 36. Rg7 {[%clk 0:00:19]}  Bb6 {[%clk 0:00:18]} 37. Nd6 {[%clk 0:00:11]}  g1=Q {[%clk 0:00:17]} 38. Nxb7+ {[%clk 0:00:11]}  Ke8 {[%clk 0:00:16]} 39. Nd6+ {[%clk 0:00:12]}  Kf8 {[%clk 0:00:16]} 40. Rxg1 {[%clk 0:00:12]}  Bxg1 {[%clk 0:00:15]} 41. c3 {[%clk 0:00:13]}  Ke7 {[%clk 0:00:15]} 42. Nc4 {[%clk 0:00:13]}  Ke6 {[%clk 0:00:14]} 43. a4 {[%clk 0:00:14]}  Kd5 {[%clk 0:00:14]} 44. Kb3 {[%clk 0:00:14]}  Re4 {[%clk 0:00:13]} 45. Nd2 {[%clk 0:00:14]}  Rh4 {[%clk 0:00:13]} 46. Nc4 {[%clk 0:00:14]}  Rh2 {[%clk 0:00:12]} 47. Na3 {[%clk 0:00:13]}  Be3 {[%clk 0:00:12]} 48. Nc2 {[%clk 0:00:13]}  Bc1 {[%clk 0:00:12]} 49. Nb4+ {[%clk 0:00:13]}  Kd6 {[%clk 0:00:11]} 50. Nd3 {[%clk 0:00:13]}  Be3 {[%clk 0:00:10]} 51. Kc4 {[%clk 0:00:14]}  c5 {[%clk 0:00:10]} 52. b4 {[%clk 0:00:13]}  cxb4 {[%clk 0:00:09]} 53. cxb4 {[%clk 0:00:14]}  Kc6 {[%clk 0:00:10]} 54. Kb3 {[%clk 0:00:14]}  Kb6 {[%clk 0:00:10]} 55. Ne5 {[%clk 0:00:15]}  Rh3 {[%clk 0:00:10]} 56. Nc4+ {[%clk 0:00:15]}  Kc6 {[%clk 0:00:08]} 57. Na5+ {[%clk 0:00:14]}  Kd5 {[%clk 0:00:08]} 58. Kc2 {[%clk 0:00:15]}  Bd4 {[%clk 0:00:07]} 59. Kb1 {[%clk 0:00:14]}  Be5 {[%clk 0:00:07]} 60. Kc2 {[%clk 0:00:13]}  Bf6 {[%clk 0:00:06]} 61. b5 {[%clk 0:00:12]}  Kc5 {[%clk 0:00:06]} 62. Nc6 {[%clk 0:00:13]}  Kc4 {[%clk 0:00:05]} 63. Nxa7 {[%clk 0:00:13]}  Rh2+ {[%clk 0:00:05]} 64. Kd1 {[%clk 0:00:13]}  Kd3 {[%clk 0:00:05]} 65. Ke1 {[%clk 0:00:13]}  Ke3 {[%clk 0:00:05]} 66. Kd1 {[%clk 0:00:13]}  Bd4 {[%clk 0:00:04]} 67. Nc6 {[%clk 0:00:07]}  Kd3 {[%clk 0:00:04]} 0-1


[Site "https://www.chess.com"]

[Event "Titled Tuesday Blitz May 23 Early 2023"]
[White "Melikhov, Evgeny V."]
[Black "Alex_Sahakyan2006"]
[WhiteFideId "4122046"]
[WhiteElo "2158"]
[BlackElo "2690"]
[Result "0-1"]
[Round "01"]
[TimeControl "180+2"]
[Date "2023.05.23"]
[WhiteClock "0:00:08"]
[BlackClock "0:00:08"]

1. d4 {[%clk 0:02:59]}  Nf6 {[%clk 0:02:59]} 2. c4 {[%clk 0:02:59]}  c5 {[%clk 0:02:59]} 3. d5 {[%clk 0:02:59]}  b5 {[%clk 0:02:59]} 4. cxb5 {[%clk 0:02:59]}  a6 {[%clk 0:03:00]} 5. b6 {[%clk 0:03:00]}  d6 {[%clk 0:03:00]} 6. Nc3 {[%clk 0:03:00]}  Nbd7 {[%clk 0:02:59]} 7. a4 {[%clk 0:03:01]}  Nxb6 {[%clk 0:02:59]} 8. a5 {[%clk 0:03:01]}  Nbd7 {[%clk 0:02:59]} 9. e4 {[%clk 0:03:01]}  g6 {[%clk 0:02:59]} 10. Nf3 {[%clk 0:03:00]}  Bg7 {[%clk 0:03:00]} 11. Be2 {[%clk 0:03:00]}  O-O {[%clk 0:02:59]} 12. O-O {[%clk 0:03:00]}  Rb8 {[%clk 0:03:00]} 13. Nd2 {[%clk 0:02:55]}  Ne8 {[%clk 0:02:59]} 14. Nc4 {[%clk 0:02:50]}  Nc7 {[%clk 0:02:59]} 15. Bg5 {[%clk 0:02:46]}  h6 {[%clk 0:02:34]} 16. Bd2 {[%clk 0:02:37]}  Nb5 {[%clk 0:02:31]} 17. Na4 {[%clk 0:02:36]}  Nd4 {[%clk 0:02:28]} 18. Bc3 {[%clk 0:02:29]}  Ne5 {[%clk 0:02:19]} 19. Ncb6 {[%clk 0:02:24]}  Nd7 {[%clk 0:02:09]} 20. Nc4 {[%clk 0:02:16]}  Nf6 {[%clk 0:02:08]} 21. f3 {[%clk 0:01:51]}  Nh5 {[%clk 0:02:05]} 22. Re1 {[%clk 0:01:48]}  f5 {[%clk 0:01:57]} 23. exf5 {[%clk 0:01:43]}  Bxf5 {[%clk 0:01:54]} 24. Bd3 {[%clk 0:01:43]}  Bxd3 {[%clk 0:01:50]} 25. Qxd3 {[%clk 0:01:42]}  Nf4 {[%clk 0:01:50]} 26. Qe4 {[%clk 0:01:34]}  Rf5 {[%clk 0:01:07]} 27. Nab6 {[%clk 0:01:31]}  e6 {[%clk 0:01:03]} 28. dxe6 {[%clk 0:00:28]}  Nfxe6 {[%clk 0:01:01]} 29. Nd5 {[%clk 0:00:21]}  Ng5 {[%clk 0:00:34]} 30. Ne7+ {[%clk 0:00:20]}  Kh7 {[%clk 0:00:33]} 31. Qd3 {[%clk 0:00:18]}  Rf6 {[%clk 0:00:14]} 32. Nd5 {[%clk 0:00:17]}  Rf7 {[%clk 0:00:11]} 33. h4 {[%clk 0:00:15]}  Ngxf3+ {[%clk 0:00:10]} 34. gxf3 {[%clk 0:00:16]}  Nxf3+ {[%clk 0:00:11]} 35. Kg2 {[%clk 0:00:15]}  Qxh4 {[%clk 0:00:11]} 36. Rh1 {[%clk 0:00:12]}  Qg4+ {[%clk 0:00:10]} 37. Kf1 {[%clk 0:00:10]}  Re8 {[%clk 0:00:08]} 38. Bxg7 {[%clk 0:00:08]}  Nh2# {[%clk 0:00:08]} 0-1


[Site "https://www.chess.com"]